bitfinex-derivatives/quotes_ETHF0:USTF0_20240930
["timestamp","ask_amount","ask_price","bid_price","bid_amount"]
[1727725281274,0.38532,2595.9,2595.6,3.2078]
[1727725281479,0.38532,2595.9,2595.7,0.38533]
[1727725282176,0.96325,2596.1,2595.6,3.2078]
[1727725282481,0.38531,2596.0,2595.7,0.38534]
[1727725282671,0.38531,2596.0,2595.9,0.38531]
[1727725283073,0.96325,2596.1,2595.6,4.1712]
[1727725283269,0.3853,2596.0,2595.8,0.38532]
[1727725283477,0.96325,2596.1,2595.8,0.38532]
[1727725283670,0.38531,2595.9,2595.8,0.38532]
[1727725283868,3.0837,2596.3,2595.6,3.2078]
[1727725284077,0.3853,2596.1,2596.0,0.3853]
[1727725284875,0.3853,2596.1,2595.9,3.2078]
[1727725284876,0.3853,2596.0,2595.9,3.2078]
[1727725286679,0.38534,2595.7,2595.6,3.2078]
[1727725289180,0.75954,2595.7,2595.6,3.2078]
[1727725294686,0.75954,2595.7,2595.6,3.59316]
[1727725294888,0.75954,2595.7,2595.6,3.2078]
[1727725300485,0.75954,2595.7,2595.6,3.59316]
[1727725301889,0.3854,2595.9,2595.6,3.2078]
[1727725302193,0.3664,2596.1,2595.6,3.2078]
[1727725302394,1.32963,2596.1,2595.9,3.2078]
[1727725302695,0.38531,2596.0,2595.9,3.2078]
[1727725303489,1.63531,2596.0,2595.9,3.2078]
[1727725305401,5.48731,2596.0,2595.9,3.2078]
[1727725306794,11.48731,2596.0,2595.9,1.987]
[1727725307096,11.102,2596.0,2595.2,1.394578]
[1727725307292,0.3854,2595.3,2595.2,1.394578]
[1727725307492,0.3854,2595.3,2595.2,0.396]
[1727725307887,1.6354,2595.4,2595.2,0.78141]
[1727725308290,1.6354,2595.4,2595.2,0.78142]
[1727725308997,1.63538,2595.5,2595.3,0.3854]
[1727725309197,1.63538,2595.5,2595.4,3.2078]
[1727725309798,0.38538,2595.5,2595.4,3.2078]
[1727725311302,2.71,2595.7,2595.4,3.2078]
[1727725311598,0.38537,2595.5,2595.4,3.2078]
[1727725312196,3.67337,2595.7,2595.4,7.44597]
[1727725312197,0.38534,2595.7,2595.4,7.44597]
[1727725312403,0.38536,2595.6,2595.4,3.2078]
[1727725313201,1.36954,2595.8,2595.4,3.2078]
[1727725313397,0.38537,2595.5,2595.4,3.2078]
[1727725313594,0.96337,2595.7,2595.4,3.2078]
[1727725313595,0.38534,2595.7,2595.4,3.2078]
[1727725313792,0.38537,2595.6,2595.4,3.2078]
[1727725314294,0.38537,2595.5,2595.4,3.2078]
[1727725314696,0.38537,2595.6,2595.4,7.0606]
[1727725314899,0.38532,2595.9,2595.5,4.23816]
[1727725315193,3.5742,2596.1,2595.7,3.2078]
[1727725315396,3.5742,2596.1,2595.8,0.3777]
[1727725315397,0.38532,2595.9,2595.8,0.3777]
[1727725316197,0.38533,2595.8,2595.7,3.2078]
[1727725317807,0.38536,2595.7,2595.5,0.3968]
[1727725318103,0.96329,2595.9,2595.5,0.3968]
[1727725318301,0.38536,2595.6,2595.5,0.3968]
[1727725318504,0.38535,2595.7,2595.5,0.3968]
[1727725318706,0.38534,2595.8,2595.5,0.3968]
[1727725319303,2.71,2596.0,2595.5,0.3968]
[1727725319497,0.38533,2595.9,2595.7,3.2078]
[1727725319803,0.38533,2595.8,2595.7,3.2078]
[1727725320802,3.67327,2596.0,2595.7,3.2078]
[1727725321006,0.38533,2595.9,2595.7,3.2078]
[1727725321206,0.96327,2596.0,2595.7,3.2078]
[1727725321512,0.38533,2595.8,2595.7,3.2078]
[1727725327205,0.38532,2595.9,2595.7,7.44594]
[1727725327508,0.38532,2595.9,2595.8,0.3943]
[1727725328012,1.32962,2596.1,2595.7,3.2078]
[1727725328013,0.38533,2595.8,2595.7,3.2078]
[1727725329104,3.09533,2595.8,2595.7,3.2078]
[1727725329814,0.38536,2595.6,2595.5,0.3968]
[1727725330107,0.38537,2595.5,2595.4,3.2078]
[1727725331907,0.38537,2595.5,2595.4,7.0606]
[1727725332210,0.38536,2595.6,2595.5,0.38537]
[1727725332511,0.38536,2595.6,2595.4,3.59317]
[1727725332710,0.38536,2595.6,2595.5,0.38537]
[1727725332907,0.38536,2595.6,2595.4,3.59318]
[1727725333411,0.38537,2595.5,2595.4,3.59318]
[1727725333616,0.38534,2595.7,2595.6,0.38536]
[1727725333810,0.38534,2595.7,2595.4,4.206378]
[1727725333811,0.96334,2595.8,2595.5,0.38537]
[1727725334411,0.38536,2595.6,2595.5,0.38537]
[1727725334803,0.38536,2595.6,2595.5,4.23817]
[1727725335109,0.38536,2595.6,2595.5,0.38537]
[1727725336810,1.25,2595.6,2595.3,0.998578]
[1727725337015,0.38537,2595.5,2595.4,3.2078]
[1727725338314,0.75337,2595.5,2595.4,3.2078]
[1727725341513,0.38537,2595.5,2595.4,3.2078]
[1727725342916,0.38537,2595.5,2595.4,3.59319]
[1727725344712,0.38537,2595.5,2595.4,3.2078]
[1727725344913,0.38537,2595.5,2595.4,3.59319]
[1727725345608,0.38537,2595.5,2595.4,3.2078]
[1727725355133,0.38537,2595.5,2595.4,3.59319]
[1727725355725,0.38537,2595.5,2595.4,3.59318]
[1727725356123,0.96338,2595.7,2595.5,0.38537]
[1727725356124,0.38537,2595.6,2595.5,0.38537]
[1727725356628,0.96338,2595.7,2595.4,3.2078]
[1727725356833,0.38537,2595.5,2595.4,3.59318]
[1727725357017,1.6389,2596.0,2595.4,3.2078]
[1727725357018,1.25,2595.9,2595.4,3.2078]
[1727725357329,0.38537,2595.5,2595.4,3.2078]
[1727725358333,2.01567,2595.5,2595.4,3.2078]
[1727725358828,0.38541,2595.3,2595.2,0.38542]
[1727725359527,0.7703,2595.4,2595.3,0.3854]
[1727725360128,0.3849,2595.4,2595.3,0.3854]
[1727725360736,0.38538,2595.5,2595.4,0.38539]
[1727725360955,0.38537,2595.6,2595.5,0.38537]
[1727725361235,0.38537,2595.5,2595.4,3.59318]
[1727725362833,0.38537,2595.5,2595.4,3.2078]
[1727725363231,1.72097,2595.7,2595.4,3.2078]
[1727725363428,0.38537,2595.5,2595.4,3.2078]
[1727725363928,0.7576,2595.7,2595.4,3.2078]
[1727725364230,0.38536,2595.6,2595.5,0.38537]
[1727725364430,0.38536,2595.6,2595.4,3.59318]
[1727725364632,0.38536,2595.6,2595.4,4.591758]
[1727725364927,0.38536,2595.6,2595.4,3.59318]
[1727725365121,0.38536,2595.6,2595.4,4.591758]
[1727725365832,0.38536,2595.6,2595.4,4.206378]
[1727725366028,0.38536,2595.6,2595.5,0.38537]
[1727725366534,0.38536,2595.6,2595.4,4.206378]
[1727725366733,0.38536,2595.6,2595.4,4.591758]
[1727725367036,0.38537,2595.5,2595.4,4.206378]
[1727725367429,0.38537,2595.5,2595.4,3.2078]
[1727725367636,1.25,2595.5,2595.3,0.998578]
[1727725367832,1.25,2595.5,2595.2,0.998578]
[1727725368134,0.3854,2595.3,2595.2,0.998578]
[1727725368338,0.3854,2595.3,2595.2,4.206378]
[1727725369637,0.3854,2595.3,2595.2,4.591798]
[1727725370632,0.3854,2595.3,2595.2,4.97762761]
[1727725370831,0.3854,2595.3,2595.2,6.47549462]
[1727725372037,0.3854,2595.3,2595.2,6.09007462]
[1727725372230,0.3854,2595.3,2595.2,4.59220761]
[1727725372430,0.3854,2595.3,2595.2,6.47549462]
[1727725374934,0.3854,2595.3,2595.2,7.72549462]
[1727725379845,0.3854,2595.3,2595.2,6.22762761]
[1727725380035,0.3854,2595.3,2595.2,7.73975381]
[1727725380433,0.96344,2595.5,2595.2,7.35433381]
[1727725380736,0.3854,2595.4,2595.3,2.77806447]
[1727725381034,0.3854,2595.4,2595.3,3.28204959]
[1727725381239,0.3854,2595.4,2595.3,2.77808308]
[1727725381441,0.3854,2595.4,2595.3,1.76992339]
[1727725381637,0.3854,2595.4,2595.3,1.00826952]
[1727725382231,0.3854,2595.4,2595.3,1.39366952]
[1727725382432,0.3854,2595.4,2595.3,1.00826952]
[1727725382640,0.3854,2595.3,2595.2,4.21606952]
[1727725382947,0.3854,2595.3,2595.2,3.2078]
[1727725384141,0.3854,2595.3,2595.2,3.59322]
[1727725384343,0.3854,2595.3,2595.2,3.2078]
[1727725384750,0.3854,2595.3,2595.1,1.00826952]
[1727725384751,0.38542,2595.2,2595.1,1.00826952]
[1727725384948,0.38543,2595.1,2595.0,1.39370952]
[1727725385140,0.38543,2595.1,2595.0,2.7780589]
[1727725386241,0.38543,2595.1,2595.0,1.39371952]
[1727725386441,0.79003,2595.1,2595.0,1.39371952]
[1727725386652,0.79003,2595.1,2595.0,1.00826952]
[1727725386952,0.38545,2595.0,2594.9,4.21606952]
[1727725387149,0.38545,2595.0,2594.9,4.60152952]
[1727725387553,0.38545,2595.0,2594.9,3.59326]
[1727725388047,0.38545,2595.0,2594.9,3.2078]
[1727725388455,0.38545,2595.0,2594.9,3.59326]
[1727725388950,0.38545,2595.0,2594.9,3.2078]
[1727725389345,0.38545,2595.0,2594.9,3.59326]
[1727725391548,0.38545,2595.0,2594.9,3.2078]
[1727725393447,0.38545,2595.0,2594.9,3.59326]
[1727725393650,0.38545,2595.0,2594.9,3.2078]
[1727725394148,0.38545,2595.0,2594.9,3.59326]
[1727725397155,0.38545,2595.0,2594.9,3.2078]
[1727725397351,0.38545,2595.0,2594.9,3.59326]
[1727725397953,0.38545,2595.0,2594.9,3.2078]
[1727725398253,0.38545,2595.0,2594.9,3.59326]
[1727725398760,2.58468,2595.2,2595.1,0.38543]
[1727725398761,0.75653,2595.2,2595.1,0.38543]
[1727725399054,2.21352,2595.3,2594.9,3.2078]
[1727725399055,0.38541,2595.3,2595.2,0.38541]
[1727725399252,0.38541,2595.3,2595.2,3.59321]
[1727725399551,0.38541,2595.3,2595.2,3.2078]
[1727725400158,0.38541,2595.3,2594.9,1.97190952]
[1727725400159,0.38543,2595.1,2595.0,0.38544]
[1727725400552,0.38545,2595.0,2594.9,3.2078]
[1727725401262,0.78725,2595.0,2594.9,3.2078]
[1727725402259,0.4018,2595.0,2594.7,0.3719]
[1727725402459,0.38549,2594.7,2594.6,3.5933]
[1727725402660,1.25,2594.8,2594.6,3.2078]
[1727725402859,1.15367,2594.9,2594.7,0.38549]
[1727725403262,0.7682,2594.9,2594.7,0.38549]
[1727725403453,0.38548,2594.8,2594.7,0.38549]
[1727725403953,0.76017,2594.9,2594.8,0.38548]
[1727725404155,0.96359,2595.1,2594.6,5.46606952]
[1727725404356,0.38546,2595.0,2594.9,0.38546]
[1727725404557,0.38547,2594.9,2594.8,0.38546]
[1727725406068,0.96359,2595.1,2594.7,0.38548]
[1727725406069,0.38548,2594.8,2594.7,0.38548]
[1727725406559,0.96364,2595.0,2594.7,3.8536]
[1727725406759,0.38549,2594.8,2594.7,0.38549]
[1727725407662,0.38549,2594.8,2594.7,4.23909]
[1727725408364,0.38549,2594.8,2594.7,0.38549]
[1727725408559,0.38549,2594.8,2594.7,4.23909]
[1727725408766,0.38549,2594.8,2594.7,0.38549]
[1727725409063,0.38549,2594.8,2594.7,4.23909]
[1727725409467,0.38549,2594.8,2594.7,0.38549]
[1727725409667,0.38549,2594.8,2594.7,4.23909]
[1727725411269,0.38547,2594.9,2594.8,0.38546]
[1727725414282,0.38546,2595.0,2594.9,0.38545]
[1727725416378,2.4051,2595.3,2594.9,0.38545]
[1727725416679,2.4051,2595.3,2594.9,3.59325]
[1727725416680,0.38545,2595.0,2594.9,3.59325]
[1727725417279,0.96356,2595.2,2594.9,3.2078]
[1727725417577,0.38544,2595.1,2595.0,0.38544]
[1727725418173,2.4051,2595.3,2594.9,3.2078]
[1727725418376,0.38543,2595.2,2595.1,0.38542]
[1727725419781,0.38545,2595.1,2595.0,0.38544]
[1727725422083,0.38545,2595.1,2595.0,0.4031]
[1727725422489,1.25,2595.1,2594.9,4.21606952]
[1727725422786,0.38545,2595.0,2594.9,3.59326]
[1727725423290,0.38545,2595.0,2594.9,4.60152952]
[1727725424481,0.38545,2595.0,2594.9,5.98926945]
[1727725424789,0.38545,2595.0,2594.9,4.60152952]
[1727725425379,0.38545,2595.0,2594.9,5.98948381]
[1727725425988,0.38545,2595.0,2594.9,6.36538381]
[1727725426388,0.38545,2595.0,2594.9,4.97742952]
[1727725426591,1.25,2595.1,2594.9,4.59196952]
[1727725426783,0.38545,2595.0,2594.9,4.97741952]
[1727725427488,1.25,2595.1,2594.9,5.98021465]
[1727725427690,1.63545,2595.1,2595.0,0.38545]
[1727725427886,0.38545,2595.0,2594.9,4.97741952]
[1727725428192,0.38545,2595.0,2594.9,6.3656187]
[1727725429197,0.38545,2595.0,2594.9,6.36587371]
[1727725430596,0.38545,2595.0,2594.9,5.35760419]
[1727725432391,0.38545,2595.0,2594.9,6.86973039]
[1727725433295,0.38545,2595.0,2594.9,5.35760419]
[1727725435300,0.38545,2595.0,2594.9,6.86973039]
[1727725435494,0.38545,2595.0,2594.9,5.35760419]
[1727725435694,0.38545,2595.0,2594.9,6.86973039]
[1727725436095,1.63545,2595.1,2595.0,0.38545]
[1727725436399,1.63545,2595.1,2595.0,1.39411733]
[1727725436800,0.38545,2595.1,2595.0,4.60191733]
[1727725437303,1.63543,2595.2,2595.1,0.38543]
[1727725438197,0.38543,2595.1,2595.0,4.60190733]
[1727725438997,1.25,2595.2,2595.0,4.21646733]
[1727725439201,1.63543,2595.2,2595.1,0.38543]
[1727725439408,0.38543,2595.1,2595.0,4.60190733]
[1727725440095,1.63543,2595.2,2595.1,0.38543]
[1727725440301,0.38543,2595.1,2595.0,4.60190733]
[1727725441306,0.3747,2595.3,2595.2,0.38542]
[1727725441601,0.3747,2595.3,2595.2,1.00847059]
[1727725441602,0.7601,2595.3,2595.2,1.00847059]
[1727725441810,1.6247,2595.3,2595.1,1.00847059]
[1727725442107,0.38543,2595.1,2595.0,4.21627059]
[1727725442302,1.63543,2595.1,2595.0,4.21627059]
[1727725442514,2.02793,2595.1,2595.0,4.60172059]
[1727725442803,0.3925,2595.1,2595.0,6.49405919]
[1727725443801,0.3925,2595.1,2595.0,4.98193299]
[1727725444002,0.77793,2595.1,2595.0,4.98193299]
[1727725444509,0.77793,2595.1,2595.0,6.49405919]
[1727725445403,0.77793,2595.1,2595.0,4.60125467]
[1727725446307,0.3712,2595.2,2595.0,4.21580467]
[1727725446503,0.38543,2595.2,2595.1,0.38542]
[1727725446708,0.3747,2595.3,2595.2,0.38542]
[1727725447698,0.7601,2595.3,2595.2,0.38542]
[1727725448009,0.3747,2595.3,2595.2,0.38542]
[1727725448607,0.7601,2595.3,2595.2,0.38542]
[1727725448806,0.3747,2595.3,2595.2,0.38542]
[1727725449009,0.7601,2595.3,2595.2,0.38542]
[1727725449509,0.3747,2595.3,2595.2,0.38542]
[1727725449708,0.3747,2595.3,2595.1,1.00800467]
[1727725450101,0.38542,2595.2,2595.1,1.39342467]
[1727725450404,0.76011,2595.3,2595.2,0.38542]
[1727725451215,0.3747,2595.3,2595.2,0.38542]
[1727725451507,0.7601,2595.3,2595.2,0.38542]
[1727725451710,0.3747,2595.3,2595.2,0.38542]
[1727725451914,0.7601,2595.3,2595.2,0.38542]
[1727725452408,0.7601,2595.3,2595.2,1.39342467]
[1727725452710,0.3747,2595.3,2595.2,1.39342467]
[1727725453610,0.78269,2595.4,2595.3,0.3854]
[1727725453799,0.7981,2595.6,2595.4,0.38539]
[1727725454003,0.7981,2595.6,2595.5,0.76777]
[1727725454004,1.18347,2595.6,2595.5,0.76777]
[1727725454209,1.18347,2595.6,2595.5,0.3824]
[1727725454407,1.18347,2595.6,2595.5,0.76777]
[1727725454710,0.38534,2595.8,2595.6,0.38535]
[1727725454909,0.8022,2596.0,2595.7,4.84314]
[1727725455106,0.8022,2596.0,2595.9,1.63531]
[1727725455107,0.3967,2596.0,2595.9,1.63531]
[1727725455309,1.1938,2596.4,2595.9,1.25]
[1727725455616,1.57904,2596.4,2596.2,3.2078]
[1727725456110,1.1938,2596.4,2596.2,3.2078]
[1727725456407,2.4438,2596.4,2596.2,3.2078]
[1727725456909,0.38525,2596.3,2596.2,3.2078]
[1727725457110,1.63525,2596.3,2596.2,3.2078]
[1727725457411,1.25,2596.3,2596.0,0.3824]
[1727725457614,0.38528,2596.1,2596.0,0.3824]
[1727725461105,2.21316,2596.3,2596.0,0.3824]
[1727725461106,1.25,2596.3,2596.0,0.3824]
[1727725461702,1.25,2596.3,2596.2,3.2078]
[1727725462816,2.4438,2596.4,2596.2,3.2078]
[1727725463714,1.1938,2596.4,2596.3,1.63525]
[1727725463915,1.1938,2596.4,2596.3,1.25]
[1727725464121,1.1938,2596.4,2596.3,1.63525]
[1727725464812,0.7883,2596.4,2596.3,1.63525]
[1727725465419,0.7883,2596.4,2596.2,3.59306]
[1727725465621,0.7883,2596.4,2596.3,0.38525]
[1727725467016,0.7883,2596.4,2596.2,3.59306]
[1727725467217,0.7883,2596.4,2596.3,0.38525]
[1727725467516,0.7883,2596.4,2596.2,3.59306]
[1727725468910,0.7883,2596.4,2596.2,3.2078]
[1727725469116,0.7883,2596.4,2596.3,0.38525]
[1727725469518,0.7883,2596.4,2596.2,3.2078]
[1727725469727,0.7883,2596.4,2596.2,3.59306]
[1727725470113,0.7883,2596.4,2596.3,0.38525]
[1727725470523,0.7883,2596.4,2596.2,3.59306]
[1727725471018,0.7883,2596.4,2596.3,0.38525]
[1727725471418,0.37,2596.6,2596.3,3.8512]
[1727725471724,0.37,2596.6,2596.5,3.2078]
[1727725474424,0.75521,2596.6,2596.5,3.2078]
[1727725474628,0.37,2596.6,2596.5,3.2078]
[1727725476524,0.75521,2596.6,2596.5,3.2078]
[1727725476718,0.37,2596.6,2596.5,3.2078]
[1727725476928,0.75521,2596.6,2596.5,3.2078]
[1727725477527,0.37,2596.6,2596.5,3.2078]
[1727725477728,0.75521,2596.6,2596.5,3.2078]
[1727725477928,0.37,2596.6,2596.5,3.2078]
[1727725479728,0.75521,2596.6,2596.5,3.2078]
[1727725479927,0.37,2596.6,2596.5,3.2078]
[1727725480121,0.75521,2596.6,2596.5,3.2078]
[1727725480330,0.37,2596.6,2596.5,3.2078]
[1727725480726,0.75521,2596.6,2596.5,3.2078]
[1727725480930,0.38523,2596.5,2596.2,3.59307]
[1727725481125,1.62,2596.6,2596.2,3.2078]
[1727725481126,0.38524,2596.4,2596.2,3.2078]
[1727725482030,2.58304,2596.6,2596.2,3.2078]
[1727725482236,0.38524,2596.4,2596.2,3.59307]
[1727725482529,0.38523,2596.5,2596.2,3.59306]
[1727725482725,2.58304,2596.6,2596.2,3.2078]
[1727725482922,0.38525,2596.4,2596.2,3.2078]
[1727725483325,0.38525,2596.4,2596.2,3.59307]
[1727725484137,2.58304,2596.6,2596.2,3.2078]
[1727725484332,1.62,2596.6,2596.2,3.2078]
[1727725484640,0.38525,2596.4,2596.2,3.59307]
[1727725485532,0.96307,2596.5,2596.2,3.59307]
[1727725485841,0.38525,2596.3,2596.2,3.59307]
[1727725486044,0.96307,2596.5,2596.2,3.59307]
[1727725486435,0.38525,2596.3,2596.2,3.59307]
[1727725487538,0.96307,2596.5,2596.2,3.59307]
[1727725487539,0.96307,2596.5,2596.2,3.2078]
[1727725487741,1.63525,2596.3,2596.2,3.2078]
[1727725488043,0.38525,2596.3,2596.2,3.2078]
[1727725490950,0.38525,2596.4,2596.2,4.84305]
[1727725491343,1.33304,2596.6,2596.2,4.84305]
[1727725491544,0.38524,2596.4,2596.2,4.84305]
[1727725491740,0.38524,2596.4,2596.2,3.59305]
[1727725491947,0.38524,2596.4,2596.2,3.2078]
[1727725492264,0.38524,2596.4,2596.2,3.59306]
[1727725492943,0.38524,2596.4,2596.2,0.38526]
[1727725493144,0.38524,2596.4,2596.3,3.2078]
[1727725500352,0.38528,2596.2,2596.0,3.5751]
[1727725500550,1.1845,2596.1,2596.0,3.96039]
[1727725500853,0.38526,2596.3,2596.1,0.38528]
[1727725501059,1.16686,2596.3,2596.1,0.38528]
[1727725501771,1.16687,2596.3,2596.1,0.38528]
[1727725501956,0.38527,2596.2,2596.0,3.96039]
[1727725502257,1.16686,2596.3,2596.0,3.5751]
[1727725502460,0.7816,2596.3,2596.1,0.38528]
[1727725502845,0.38527,2596.2,2596.1,0.38528]
[1727725504154,0.7816,2596.3,2596.1,0.38528]
[1727725504360,0.38527,2596.2,2596.1,0.38528]
[1727725504557,4.04088518,2596.9,2596.2,3.852]
[1727725504748,4.04088518,2596.9,2596.7,0.38518]
[1727725504749,1.1673,2596.9,2596.7,0.38518]
[1727725505066,1.1673,2596.9,2596.8,3.5992]
[1727725505253,1.1673,2596.9,2596.8,3.98438]
[1727725505653,4.56514,2597.1,2596.8,5.23437]
[1727725505866,0.38516,2597.0,2596.8,4.8492]
[1727725506367,4.18,2597.1,2596.9,1.25]
[1727725506664,1.52071,2597.3,2597.0,0.38515]
[1727725506851,1.1356,2597.3,2597.1,4.4578]
[1727725507051,1.1356,2597.3,2597.1,3.2078]
[1727725507266,2.3856,2597.3,2597.1,3.2078]
[1727725507448,2.77072,2597.3,2597.1,3.2078]
[1727725508459,2.77071,2597.3,2597.1,3.2078]
[1727725508765,2.3856,2597.3,2597.1,3.2078]
[1727725508954,1.1356,2597.3,2597.2,0.3809]
[1727725509969,0.752,2597.3,2597.2,0.3809]
[1727725510962,0.3851,2597.4,2597.2,0.3809]
[1727725511157,0.3787,2597.5,2597.2,0.3809]
[1727725511364,0.3851,2597.4,2597.2,0.3809]
[1727725512373,0.3787,2597.5,2597.2,0.3809]
[1727725512663,0.38511,2597.3,2597.2,0.3809]
[1727725513168,0.3851,2597.4,2597.2,0.3809]
[1727725513873,0.38511,2597.4,2597.2,0.3809]
[1727725514173,0.38511,2597.3,2597.2,0.3809]
[1727725515257,0.7518,2597.6,2597.4,0.38509]
[1727725515460,0.7518,2597.6,2597.4,4.4578]
[1727725515662,0.7518,2597.6,2597.4,4.84288]
[1727725516159,1.13686,2597.6,2597.4,4.4578]
[1727725516562,0.7518,2597.6,2597.4,4.4578]
[1727725516766,0.7518,2597.6,2597.5,0.38508]
[1727725516971,0.77143,2597.8,2597.6,0.38506]
[1727725517173,1.18732,2597.9,2597.7,3.99685]
[1727725517372,1.18732,2597.9,2597.7,3.6118]
[1727725517373,0.38503,2597.8,2597.7,3.6118]
[1727725517564,1.18732,2597.9,2597.7,3.99685]
[1727725517761,0.8023,2597.9,2597.7,3.99685]
[1727725518073,1.18732,2597.9,2597.7,3.99684]
[1727725518273,1.18732,2597.9,2597.7,3.6118]
[1727725518576,0.8023,2597.9,2597.7,3.99684]
[1727725518761,0.3961,2598.1,2597.8,1.25]
[1727725519074,1.25,2598.3,2598.0,1.25]
[1727725519075,0.3957,2598.2,2598.0,1.25]
[1727725519376,0.3957,2598.2,2598.1,0.404]
[1727725519762,1.18765,2598.4,2598.1,0.404]
[1727725519763,0.8027,2598.4,2598.1,0.404]
[1727725519971,4.56034989,2598.9,2598.3,3.2078]
[1727725519972,0.38492,2598.6,2598.3,3.2078]
[1727725520159,0.38494,2598.5,2598.3,3.2078]
[1727725520567,0.38494,2598.4,2598.3,3.2078]
[1727725521471,2.21228,2598.7,2598.3,3.2078]
[1727725521863,0.38494,2598.4,2598.3,3.2078]
[1727725525370,1.147,2598.8,2598.3,3.2078]
[1727725525572,0.38494,2598.4,2598.3,3.2078]
[1727725525879,0.96229,2598.6,2598.3,3.2078]
[1727725526180,0.96229,2598.6,2597.6,3.2078]
[1727725526181,1.25,2598.4,2597.6,3.2078]
[1727725526474,0.38504,2597.8,2597.6,3.9804]
[1727725526668,0.38505,2597.7,2597.6,5.2304]
[1727725526870,0.38505,2597.7,2597.6,3.2078]
[1727725527177,0.3851,2597.4,2597.3,3.2078]
[1727725527366,0.3851,2597.4,2597.1,0.76133]
[1727725527367,1.25,2597.4,2597.1,0.3762]
[1727725527573,0.4027,2597.5,2597.2,1.25]
[1727725527773,0.38512,2597.3,2597.1,0.3762]
[1727725527971,0.4027,2597.5,2597.1,0.3762]
[1727725528272,0.4027,2597.5,2597.1,0.76132]
[1727725528273,0.3851,2597.4,2597.1,0.76132]
[1727725528587,0.4027,2597.5,2597.1,0.3762]
[1727725528874,0.38511,2597.3,2597.1,0.76133]
[1727725529071,0.3851,2597.4,2597.1,0.76133]
[1727725529272,0.38511,2597.3,2597.1,0.3762]
[1727725529466,0.4027,2597.5,2597.1,0.3762]
[1727725529674,0.38509,2597.4,2597.3,3.2078]
[1727725529973,0.3851,2597.4,2597.1,0.76133]
[1727725530275,0.3851,2597.4,2597.3,3.2078]
[1727725530669,0.4027,2597.5,2597.3,3.2078]
[1727725530867,0.38509,2597.4,2597.3,3.2078]
[1727725531071,0.4027,2597.5,2597.3,3.2078]
[1727725531072,0.78779,2597.5,2597.3,3.2078]
[1727725531273,0.38509,2597.4,2597.3,3.2078]
[1727725531572,0.38512,2597.2,2597.1,0.3762]
[1727725531777,0.38511,2597.3,2597.1,0.3762]
[1727725532876,0.38514,2597.1,2597.0,3.2078]
[1727725533178,6.5604,2597.2,2596.7,3.2078]
[1727725533179,2.71,2597.2,2596.7,3.2078]
[1727725533382,0.96277,2597.3,2596.7,3.59299]
[1727725533383,0.75266,2597.0,2596.7,3.59299]
[1727725533890,0.3675,2597.0,2596.9,0.38517]
[1727725534175,0.4027,2597.5,2596.8,2.71]
[1727725534176,1.36542,2597.5,2596.8,2.71]
[1727725534476,0.7526,2597.4,2597.1,0.38513]
[1727725534670,0.4027,2597.5,2597.3,3.2078]
[1727725534877,0.78779,2597.5,2597.3,3.2078]
[1727725535179,0.3769,2597.6,2597.3,3.2078]
[1727725535380,0.38508,2597.5,2597.3,3.2078]
[1727725535683,1.69822,2597.8,2597.3,3.2078]
[1727725535684,0.7356,2597.8,2597.3,3.2078]
[1727725535872,0.7356,2597.8,2597.6,3.2078]
[1727725535873,0.38505,2597.7,2597.6,3.2078]
[1727725536070,0.7356,2597.8,2597.6,3.2078]
[1727725536071,1.12064,2597.8,2597.6,3.2078]
[1727725536380,0.7356,2597.8,2597.6,3.2078]
[1727725536578,1.12064,2597.8,2597.6,3.2078]
[1727725536775,0.38505,2597.7,2597.6,3.2078]
[1727725537082,0.7356,2597.8,2597.6,3.59285]
[1727725537303,0.3888,2598.1,2597.7,0.38505]
[1727725537480,0.78068,2598.2,2597.9,3.59281]
[1727725537680,0.38496,2598.3,2598.0,1.1389]
[1727725537874,0.38496,2598.3,2598.2,3.2078]
[1727725538074,1.16943,2598.5,2598.2,3.59277]
[1727725538275,1.16943,2598.5,2598.2,3.2078]
[1727725538675,0.38495,2598.4,2598.2,3.2078]
[1727725539182,0.7845,2598.5,2598.2,3.2078]
[1727725539379,0.38496,2598.3,2598.2,3.2078]
[1727725539778,0.7845,2598.5,2598.0,0.7539]
[1727725540080,0.38498,2598.2,2598.0,0.7539]
[1727725540579,1.74685,2598.5,2598.0,0.7539]
[1727725540879,0.38496,2598.3,2598.2,3.2078]
[1727725543781,0.38497,2598.3,2598.0,0.7539]
[1727725543976,2.71,2598.1,2597.4,0.09]
[1727725544179,3.8488,2598.2,2597.3,1.19089]
[1727725544180,3.6726,2597.8,2597.3,1.19089]
[1727725544375,1.1131,2598.0,2597.6,2.71]
[1727725544680,0.3726,2598.0,2597.8,0.38503]
[1727725544869,0.3726,2598.0,2597.7,3.2078]
[1727725545074,0.7679,2598.3,2597.8,7.3409]
[1727725545271,0.38498,2598.2,2598.0,3.2078]
[1727725545678,1.15287,2598.3,2598.0,3.5928]
[1727725545980,0.38497,2598.3,2598.0,3.5928]
[1727725546176,1.36546,2598.5,2598.0,9.7666]
[1727725546177,0.4031,2598.5,2598.0,9.7666]
[1727725546379,0.3671,2598.6,2598.3,3.2078]
[1727725546583,0.75202,2598.6,2598.3,3.59275]
[1727725546877,0.75202,2598.6,2598.4,0.4039]
[1727725546878,0.38493,2598.5,2598.4,0.4039]
[1727725549380,0.3671,2598.6,2598.4,0.4039]
[1727725549588,0.38493,2598.5,2598.4,0.4039]